Cogmind - Beta 15 @@@ ROGUE MODE // 2025.05.16 @ 22:19:56 Player: Cracklepappy Result: Destroyed by G-67 Veteran with Field Laser Performance ------------- Evolutions (6) 3000 Regions Visited (20) 4000 Robots Destroyed (123) 615 Value Destroyed (3085) 3085 Prototype IDs (52) 1040 Alien Tech Used (1) 200 Bonus (212) 212 TOTAL SCORE: 12152 Bonus ------- High Alert Combat Kills 111 Follower Combat Kills 504 Registered with UFD 300 Met Optimus in HQ 500 Met Data Miner 300 Friendly Fire -1503 Cogmind --------- Core Integrity 0/1150 Matter 30/300 Energy 99/100 System Corruption 4% Temperature Cool (0) Movement Core (50) Location -4/Factory Parts ------- > --- POWER (1) -------- (None) > --- PROPULSION (7) --- (None) > --- UTILITY (7) ------ (None) > --- WEAPON (4) ------- Lance > --- INVENTORY (5) ---- Deep Structural Scanner Advanced System Shield Authchip [Propulsion] Transdimensional Reconstructor Peak State ------------ > --- POWER ------------ Micro Fission Core > --- PROPULSION ------- Centrium Wheel Cooled VTOL Module Nuclear Pulse Thruster Nuclear Pulse Array Nuclear Pulse Array > --- UTILITY ---------- Medium Storage Unit Enhanced Optical Array Improved Signal Interpreter Core Analyzer Advanced Transmission Jammer Experimental Propulsion Shielding Advanced Hacking Suite > --- WEAPON ----------- Improved Heavy Machine Gun KE Penetrator Railgun Railgun > --- INVENTORY -------- Advanced Energy Well Deep Structural Scanner Improved Sensor Array Advanced Salvage Targeting Computer Advanced System Shield Authchip [Propulsion] Transdimensional Reconstructor Improved Arc Projector Improved Plasma Cutter Lance [Rating: 111] Favorites ----------- Power Subdweller Power Source Engine Subdweller Power Source Power Core Micro Fission Core Reactor Heavy Antimatter Reactor Propulsion Nuclear Pulse Thruster Treads Light Treads Wheel Centrium Wheel Hover Unit Improved Linear Gravjet Flight Unit Nuclear Pulse Thruster Utility Large Storage Unit Device Long-range Sensor Array Storage Large Storage Unit Processor Advanced Signal Interpreter Hackware Advanced Hacking Suite Protection Hardened Medium Armor Plating Weapon Improved Light Cannon Energy Gun Small Laser Energy Cannon Subdweller Beam Cannon Ballistic Gun Heavy Battle Rifle Ballistic Cannon Improved Light Cannon Launcher Mini Grenade Launcher Special Weapon Mining Laser Slashing Weapon Ripper Piercing Weapon Makeshift Spear Special Melee Weapon Improved Datajack Build | -11 -10 -10 -10 -9 -9 -6 -6 -6 -6 -6 -6 -5 -5 -5 -5 -5 -5 -5 -4 -4 ------- Run | Yrd Mat Min Sub Rec Scr Fac Was Fac Low Low Dat Pro Fac Was Fac Upp Upp Zhi Pro Fac Slots Evolved 12 | . . . . . . 8 . . . . . . 2 . . . . . . 2 Power . | . . . . . . . . . . . . . . . . . . . . . Propulsion 5 | . . . . . . 3 . . . . . . 1 . . . . . . 1 Utility 5 | . . . . . . 3 . . . . . . 1 . . . . . . 1 Weapon 2 | . . . . . . 2 . . . . . . . . . . . . . . Parts Attached 150 | 7 10 3 18 4 6 20 13 6 2 1 . . 15 1 19 7 3 5 2 8 Power 16 | 1 . 1 4 . 1 2 1 . . . . . 1 . 2 1 . 1 1 . Engine 9 | 1 . 1 3 . 1 1 . . . . . . . . . 1 . . 1 . Core 6 | . . . 1 . . 1 1 . . . . . 1 . 2 . . . . . Reactor 1 | . . . . . . . . . . . . . . . . . . 1 . . Propulsion 26 | 2 2 . 2 1 2 4 4 2 . . . . 2 1 1 . . . . 3 Treads 7 | 2 2 . 2 1 . . . . . . . . . . . . . . . . Leg . | . . . . . . . . . . . . . . . . . . . . . Wheel 1 | . . . . . . . . . . . . . . . . . . . . 1 Hover 1 | . . . . . . . . . . . . . . 1 . . . . . . Flight 17 | . . . . . 2 4 4 2 . . . . 2 . 1 . . . . 2 Utility 60 | 2 4 1 1 2 1 11 3 4 1 1 . . 8 . 7 5 1 4 1 3 Device 30 | 1 1 . 1 2 . 4 3 3 1 . . . 3 . 2 4 1 1 1 2 Storage 9 | 1 2 . . . 1 . . . . 1 . . 1 . 2 . . 1 . . Processor 6 | . . . . . . 1 . 1 . . . . 1 . 1 1 . . . 1 Hackware 9 | . . . . . . 6 . . . . . . 2 . 1 . . . . . Protection 6 | . 1 1 . . . . . . . . . . 1 . 1 . . 2 . . Artifact . | . . . . . . . . . . . . . . . . . . . . . Weapon 48 | 2 4 1 11 1 2 3 5 . 1 . . . 4 . 9 1 2 . . 2 Energy Gun 2 | 1 . . . . . . . . . . . . . . 1 . . . . . Energy Cannon 6 | . . . 5 . . 1 . . . . . . . . . . . . . . Ballistic Gun 19 | 1 1 . . . 1 . 4 . . . . . 3 . 4 1 2 . . 2 Ballistic Cannon 7 | . 3 . 4 . . . . . . . . . . . . . . . . . Launcher 2 | . . 1 . . . . . . . . . . . . 1 . . . . . Special Weapon 2 | . . . 1 1 . . . . . . . . . . . . . . . . Impact Weapon . | . . . . . . . . . . . . . . . . . . . . . Slashing Weapon 4 | . . . 1 . . . 1 . . . . . . . 2 . . . . . Piercing Weapon 3 | . . . . . . . . . 1 . . . 1 . 1 . . . . . Special Melee Weapon 3 | . . . . . 1 2 . . . . . . . . . . . . . . Unidentified Prototypes 6 | . . . . . . . . . . . . . 2 . . . . 4 . . Parts Lost 24 | . . . 5 . . 1 . 1 . . . . . . 5 1 . . . 11 Power 2 | . . . 2 . . . . . . . . . . . . . . . . . Propulsion 8 | . . . 2 . . . . 1 . . . . . . . . . . . 5 Utility 7 | . . . . . . 1 . . . . . . . . 3 1 . . . 2 Weapon 7 | . . . 1 . . . . . . . . . . . 2 . . . . 4 Highest Loss Streak 5 | . . . 2 . . 1 . 1 . . . . . . 3 1 . . . 5 To Critical Strikes 1 | . . . . . . . . . . . . . . . . . . . . 1 Average Backups 10 | 5 11 15 14 13 11 4 4 4 5 5 5 5 4 5 9 8 10 9 10 8 Power . | . 1 1 1 1 . . . . . . . . . . . . 1 . . . Propulsion 1 | 3 3 3 2 4 3 . . . . . . . . . . . . . . . Utility 3 | . 3 5 2 2 1 3 3 3 3 3 3 3 3 3 7 6 6 5 6 5 Weapon 3 | . 3 5 7 4 3 . . . . 1 1 1 . 1 1 1 1 2 2 1 Tool/Special . | . . . . . . . . . . . . . . . . . . . . . Unused Backups 43 | . 9 1 4 . 6 2 1 . 1 . . . 1 . 7 . 1 2 . 8 Power 3 | . . . . . 1 . . . . . . . . . 1 . . 1 . . Propulsion 8 | . 3 1 . . 4 . . . . . . . . . . . . . . . Utility 18 | . 2 . 2 . . 1 . . 1 . . . . . 5 . 1 1 . 5 Weapon 10 | . 3 . 2 . 1 1 1 . . . . . . . 1 . . . . 1 Tool/Special 4 | . 1 . . . . . . . . . . . 1 . . . . . . 2 Average Slot Usage (%) 96 | . 99 100 98 99 100 86 99 98 100 100 84 100 94 92 89 87 88 79 88 73 Engine 6 | . 13 14 7 14 14 5 . . . . . . . . . . . . . . Core 3 | . . . 5 . . . 6 6 6 6 6 6 5 5 5 5 5 5 5 4 Treads 16 | . 28 28 27 28 24 . . . . . . . . . . . . . . . Flight 11 | . . . . . 3 26 33 32 33 33 33 33 29 27 24 23 23 23 23 17 Device 10 | . 4 . 8 14 14 7 12 18 20 20 20 20 16 17 9 8 4 5 4 6 Storage 9 | . 14 14 14 14 14 1 . . . . . . . . 4 5 5 5 5 4 Processor 3 | . . . . . . 4 6 6 6 6 6 6 11 11 11 11 17 17 17 11 Hackware 2 | . . . . . . 16 13 7 6 6 6 6 5 5 5 5 5 5 5 4 Protection 3 | . 9 14 5 . . . . . . . . . . . . 2 . . . 3 Energy Cannon 4 | . . . 14 . . 3 1 . . . . . . . . . . . . . Ballistic Gun 7 | . 3 . . . 1 6 19 26 25 20 4 26 17 17 16 17 17 8 17 12 Ballistic Cannon 11 | . 21 28 11 27 24 . . . . . . . . . . . . . . . Slashing Weapon 1 | . . . 1 . 1 6 2 . . . . . . . 4 . . . . . Piercing Weapon 1 | . . . . . . . . . . 6 6 . 4 5 . 4 4 5 4 4 Peak Build Rating 111 | 8 11 13 21 18 16 58 69 72 73 71 70 71 97 99 98 96 93 99 96 111 Average Rating 41 | 6 9 12 17 15 14 44 62 67 71 70 60 70 91 96 96 92 91 84 94 87 On Entrance 58 | . 8 11 13 18 14 16 57 69 68 70 71 70 71 97 97 95 92 93 95 94 Naked Turns . | . . . . . . . . . . . . . . . . . . . . . Heaviest Build 49 | 14 34 41 49 38 33 24 25 26 26 24 26 26 27 27 36 37 36 37 37 36 Greatest Support 46 | 40 40 40 40 46 40 26 30 30 29 29 29 29 36 36 37 37 37 37 37 41 Greatest Overweight (x) 8 | . . 1 2 . 3 7 . . 1 1 . 1 1 8 . . . . . 2 Average Overweight (x) . | . . . . . . . . . . . . . . . . . . . . . Largest Inventory Capacity 15 | 8 15 15 15 15 15 5 5 5 5 5 5 5 5 5 10 10 10 10 10 10 Average Capacity 11 | 7 12 15 15 15 13 5 5 5 5 5 5 5 5 5 9 10 10 10 10 9 Most Carried 15 | 8 15 15 15 15 15 5 5 5 5 5 5 5 5 5 10 10 10 10 10 10 Average Carried 11 | 5 11 14 14 14 13 4 4 4 4 5 5 5 4 5 9 8 10 9 10 8 Final Capacity 15 | 8 15 15 15 15 5 5 5 5 5 5 5 5 5 5 10 10 10 10 10 5 Final Carried 15 | 8 15 15 15 15 5 5 5 5 5 5 5 5 5 5 10 10 10 10 10 4 Class Distribution -------------------- 59% | Mutant 6% | Derelict-Skirmisher 5% | Scout 5% | Sprinter 5% | Infiltrator-Ninja 4% | Derelict-Assassin Dominant Class ---------------- Mutant | -10/Materials Mutant | -10/Mines Mutant | -10/Subcaves Mutant | -9/Recycling Mutant | -9/Scraptown Hacker-Sprinter | -6/Factory Scavenger-Sprinter | -6/Waste Scavenger-Sprinter | -6/Factory Derelict-Skirmisher | -6/Lower Caves Derelict-Assassin | -6/Lower Caves Scout | -6/Data Miner Derelict-Skirmisher | -5/Proximity Caves Infiltrator-Ninja | -5/Factory Infiltrator-Ninja | -5/Waste Machinist-Ninja | -5/Factory Sprinter | -5/Upper Caves Scout | -5/Upper Caves Scout | -5/Zhirov Scout | -4/Proximity Caves Scout | -4/Factory Resources | -11 -10 -10 -10 -9 -9 -6 -6 -6 -6 -6 -6 -5 -5 -5 -5 -5 -5 -5 -4 -4 ----------- Run | Yrd Mat Min Sub Rec Scr Fac Was Fac Low Low Dat Pro Fac Was Fac Upp Upp Zhi Pro Fac Matter Collected 5511 | 336 450 398 959 158 70 160 260 279 56 96 . 48 380 . 637 356 185 140 166 377 Remotely . | . . . . . . . . . . . . . . . . . . . . . Salvage Created 6195 | 273 587 100 995 139 . 191 341 240 . . . 17 739 . 619 404 364 485 114 587 Parts 299 | 26 43 5 61 7 . 10 12 8 . . . 3 24 . 36 6 15 4 7 32 Haulers Intercepted 5 | . 1 . . . . . . 1 . . . . 3 . . . . . . . Recyclers Shooed 8 | 1 . 1 . 1 . . . 1 . . . . . . 2 . . . . 2 Parts Field Recycled . | . . . . . . . . . . . . . . . . . . . . . Retrieved Matter . | . . . . . . . . . . . . . . . . . . . . . Parts Self-Destructed 47 | . . . 22 . . . . . . . . 3 . . . 1 12 3 6 . Prevented . | . . . . . . . . . . . . . . . . . . . . . Kills | -11 -10 -10 -10 -9 -9 -6 -6 -6 -6 -6 -6 -5 -5 -5 -5 -5 -5 -5 -4 -4 ------- Run | Yrd Mat Min Sub Rec Scr Fac Was Fac Low Low Dat Pro Fac Was Fac Upp Upp Zhi Pro Fac Combat Hostiles Destroyed 67 | . 13 3 25 4 . 1 . 2 . . . 2 . . 4 . 2 . 3 8 Melee 5 | . . . . . . 1 . . . . . . . . 1 . . . . 3 Guns 22 | . 5 . . . . . . 2 . . . 2 . . 3 . 2 . 3 5 Cannons 36 | . 8 1 23 4 . . . . . . . . . . . . . . . . AOE 2 | . . 2 . . . . . . . . . . . . . . . . . . Classes Destroyed 19 | 3 6 . 4 . . 1 . 1 . . . 1 . . 1 1 . . 1 . Worker 10 | 2 . . . . . . . . . . . . 1 . 2 . . . . 5 Builder 4 | . . . . . . . . . . . . . . . 4 . . . . . Tunneler 8 | 8 . . . . . . . . . . . . . . . . . . . . Hauler 5 | . 1 . . . . . . 1 . . . . 3 . . . . . . . Recycler 9 | 1 1 1 . . . 1 . . . . . . 2 . 2 . . . . 1 Minesweeper 1 | . . . . . . . . . . . . . . . . . . . 1 . Mechanic 3 | . 1 . . . . . . 1 . . . . . . 1 . . . . . Operator 4 | . 2 . . . . 1 . . . . . . 1 . . . . . . . Drone 4 | . . . . . . . . . . . . 2 . . . . . . 2 . Turret 2 | . . . 2 . . . . . . . . . . . . . . . . . Watcher 6 | . 3 . . . . . . 1 . . . . 1 . . . . . . 1 Swarmer 18 | . 3 2 5 . . . . . . . . . . . 1 . . . 1 6 Grunt 15 | . 10 1 3 . . . . . . . . . . . . . . . . 1 Sentry 6 | . . . 1 4 . . . 1 . . . . . . . . . . . . Hunter 4 | . . . . . . . . 1 . . . . . . . . 2 . . 1 Programmer 4 | . . . . . . 1 . . . . . . . . 3 . . . . . Enhanced Grunt 1 | . . . . . . . . . . . . . . . . . . 1 . . Artisan 1 | . . . 1 . . . . . . . . . . . . . . . . . Subdweller 16 | . . . 16 . . . . . . . . . . . . . . . . . Decomposer 3 | . . . . . . . . . . . . . . . . 1 2 . . . Packrat 1 | . . . . . . . . . . . . . . . . 1 . . . . Samaritan 2 | . . . . . . . . . . . . . . . . 1 . . 1 . Wasp 3 | . . . . . . . 3 . . . . . . . . . . . . . Best Kill Streak 4 | 2 3 2 2 1 . 1 . 3 . . . 1 2 . 3 . 2 . 2 4 Combat Bots Only 3 | . 3 2 2 1 . 1 . 1 . . . 1 . . 1 . 2 . 2 3 Max Kills in Single Turn 2 | 1 1 2 1 1 . 1 1 1 . . . 1 1 . 2 1 1 1 1 2 Gunslinging . | . . . . . . . . . . . . . . . . . . . . . Exploded 2 | . . 2 . . . . . . . . . . . . . . . . . . Melee 1 | . . . . . . 1 . . . . . . . . 1 . . . . 1 Uniques/NPCs Destroyed . | . . . . . . . . . . . . . . . . . . . . . Combat | -11 -10 -10 -10 -9 -9 -6 -6 -6 -6 -6 -6 -5 -5 -5 -5 -5 -5 -5 -4 -4 -------- Run | Yrd Mat Min Sub Rec Scr Fac Was Fac Low Low Dat Pro Fac Was Fac Upp Upp Zhi Pro Fac Hostile Shots Fired 523 | . 41 8 95 15 . 31 . 9 . 2 . . . . 51 3 6 . 8 254 Missed 210 | . 8 4 27 4 . 20 . 7 . 2 . . . . 19 1 2 . 7 109 Hits 313 | . 33 4 68 11 . 11 . 2 . . . . . . 32 2 4 . 1 145 Melee 3 | . . . . . . . . . . . . . . . . . . . . 3 Projectile 310 | . 33 4 68 11 . 11 . 2 . . . . . . 32 2 4 . 1 142 AOE 6 | . . . 5 . . . . . . . . . . . 1 . . . . . Critical Strikes 13 | . . . 2 . . 1 . . . . . . . . 3 . . . . 7 Actively Blocked 1 | . . . . . . . . . . . . . . . . . . . . 1 Damage Taken 5790 | . 375 37 1393 164 . 234 . 152 . . . . . . 831 13 68 . 16 2507 Core 1465 | . 74 . 122 . . 17 . . . . . . . . 80 . 17 . . 1155 Absorbed by Shields . | . . . . . . . . . . . . . . . . . . . . . Redirected to Shielding 226 | . 12 . . . . . . . . . . . . . 52 . . . . 162 Regen/Repaired (Parts) 88 | . 23 . . . . 23 . 12 . . . . . . 8 . . . . 22 Core Remaining (%) 77 | 100 . . . . 21 . . . . . . 98 . . . . . . 90 . Volleys Fired 282 | 22 60 6 120 11 . 6 . 13 . . . 5 1 . 14 . 2 . 6 16 Largest 4 | 2 2 2 2 2 . 1 . 4 . . . 4 4 . 3 . 4 . 4 4 Hottest 160 | 60 66 66 160 66 . 90 . 132 . . . 132 132 . 99 . 126 . 131 131 Shots Fired 586 | 44 118 12 176 22 . 6 . 53 . 1 . 20 4 . 39 . 9 . 22 60 Gun 288 | 44 36 . . . . . . 53 . 1 . 20 4 . 39 . 9 . 22 60 Cannon 261 | . 82 11 140 22 . 6 . . . . . . . . . . . . . . Launcher 13 | . . 1 12 . . . . . . . . . . . . . . . . . Special 24 | . . . 24 . . . . . . . . . . . . . . . . . Kinetic 420 | 22 100 11 57 22 . . . 53 . 1 . 20 4 . 39 . 9 . 22 60 Thermal 153 | 22 18 . 107 . . 6 . . . . . . . . . . . . . . Explosive 13 | . . 1 12 . . . . . . . . . . . . . . . . . Electromagnetic . | . . . . . . . . . . . . . . . . . . . . . Robot Hit Streak 23 | 6 4 4 23 14 . . . 10 . . . 1 . . 6 . 4 . 1 10 Robot Miss Streak 10 | 3 6 1 7 2 . . . 4 . . . 10 . . 5 . 2 . 4 6 Penetration Max 1 | . . . . . . . . . . . . . . . 1 . . . . 1 Secondary Targets 3 | . . . . . . . . . . . . . . . . . 1 . . 2 Max Gunslinging Chain 1 | . . . . . . . . . . . . . . . . . 1 . . 1 Shots Hit Robots 383 | 21 55 6 86 15 4 6 11 30 . . . 3 20 . 39 10 13 18 7 39 Core Hits 187 | 12 25 5 43 6 . 3 9 10 . . . 2 9 . 17 6 8 6 3 23 Critical Kills 3 | . . . 2 . . . . . . . . . . . . . 1 . . . Critical Parts Destroyed 5 | . . . . . . . . 1 . . . . . . . . 1 . . 3 Critical Strikes 27 | . 3 . 5 2 . . 2 1 . . . . 3 . . . 3 2 . 6 Meltdown 2 | . . . 2 . . . . . . . . . . . . . . . . . Destroy 6 | . . . . . . . . 1 . . . . . . . . 2 . . 3 Blast 8 | . 3 . 3 2 . . . . . . . . . . . . . . . . Sever 2 | . . . . . . . 2 . . . . . . . . . . . . . Impale 9 | . . . . . . . . . . . . . 3 . . . 1 2 . 3 Melee Attacks 267 | . . . 30 . 4 21 11 . 7 . . . 67 . 45 10 8 19 8 37 Impact . | . . . . . . . . . . . . . . . . . . . . . Slashing 103 | . . . 30 . . 20 11 . . . . . . . 42 . . . . . Piercing 159 | . . . . . . . . . 7 . . . 67 . 3 10 8 19 8 37 Sneak Attacks 46 | . . . 1 . 4 4 8 . . . . . 7 . 6 4 2 2 2 6 Combat Hostiles . | . . . . . . . . . . . . . . . . . . . . . Follow-up Attacks . | . . . . . . . . . . . . . . . . . . . . . Damage Inflicted 13561 | 263 995 268 2644 308 . 304 557 725 . . . 68 1131 . 1654 801 697 1311 324 1511 Guns 2924 | 263 256 . . . . . . 725 . . . 68 . . 752 . 91 . 121 648 Cannons 3052 | . 739 156 1852 305 . . . . . . . . . . . . . . . . Explosions 328 | . . 92 236 . . . . . . . . . . . . . . . . . Melee 7229 | . . . 556 . . 304 557 . . . . . 1131 . 902 801 606 1311 203 858 Ramming 28 | . . 20 . 3 . . . . . . . . . . . . . . . 5 Kinetic 4474 | 140 875 156 593 305 . . . 725 . . . 68 . . 752 . 91 . 121 648 Thermal 1502 | 123 120 . 1259 . . . . . . . . . . . . . . . . . Explosive 328 | . . 92 236 . . . . . . . . . . . . . . . . . Electromagnetic . | . . . . . . . . . . . . . . . . . . . . . Impact . | . . . . . . . . . . . . . . . . . . . . . Slashing 2319 | . . . 556 . . 304 557 . . . . . . . 902 . . . . . Piercing 4910 | . . . . . . . . . . . . . 1131 . . 801 606 1311 203 858 Highest Corruption 17 | . 4 4 4 . . 2 2 2 2 2 2 2 . 9 15 17 7 2 2 4 Average Corruption 4 | . 3 4 3 . . 1 2 2 2 2 2 2 . 9 10 12 3 2 1 3 Corruption Purged 21 | . . . 4 . . . . . . . . . . . . 10 5 . 2 . Corruption Blocked . | . . . . . . . . . . . . . . . . . . . . . Effects 278 | . 16 40 76 . . 1 3 6 14 16 . 4 . 2 68 21 3 3 4 1 Message Errors 65 | . 5 10 22 . . . . 1 2 2 . 1 . . 18 3 1 . . . Matter Fused 64 | . 1 7 21 . . . . 2 3 3 . 2 . 1 13 7 1 1 2 . Heat Flow Errors 28 | . 1 2 9 . . . . 1 2 4 . . . . 6 2 . . . 1 Energy Discharges 47 | . 4 7 10 . . . 2 1 6 3 . 1 . . 10 3 . . . . Parts Rejected 1 | . . . . . . . . . . . . . . . 1 . . . . . Parts Fused 2 | . . . 1 . . . . . . . . . . . 1 . . . . . Data Loss (minor) 42 | . 4 9 6 . . 1 1 . 1 2 . . . 1 12 4 . 1 . . Data Loss (major) 9 | . 1 4 3 . . . . . . . . . . . . 1 . . . . Misfires 8 | . . 1 1 . . . . 1 . 1 . . . . 3 . 1 . . . Alerts 8 | . . . 3 . . . . . . 1 . . . . 1 . . 1 2 . Misdirections 2 | . . . . . . . . . . . . . . . 1 1 . . . . Weapon Failures 2 | . . . . . . . . . . . . . . . 2 . . . . . Overload Shots . | . . . . . . . . . . . . . . . . . . . . . Overflow Damage 1597 | . . 16 73 . . 36 27 . . . . . 308 . 139 150 224 191 150 283 Projectiles 25 | . . . 25 . . . . . . . . . . . . . . . . . Explosions 16 | . . 16 . . . . . . . . . . . . . . . . . . Melee 1556 | . . . 48 . . 36 27 . . . . . 308 . 139 150 224 191 150 283 Knockbacks 15 | . 5 4 6 . . . . . . . . . . . . . . . . . Impact . | . . . . . . . . . . . . . . . . . . . . . Kinetic 13 | . 4 3 6 . . . . . . . . . . . . . . . . . Secondary 2 | . 1 1 . . . . . . . . . . . . . . . . . . Self-Inflicted Damage 2 | . . . . . . . . . . . . . . . . . . . . 2 Shots . | . . . . . . . . . . . . . . . . . . . . . Rammed 6 | . . 2 . 2 . . . . . . . . . . . . . . . 2 Targets Rammed 6 | . . 2 . 2 . . . . . . . . . . . . . . . 2 Kicked . | . . . . . . . . . . . . . . . . . . . . . Crushed . | . . . . . . . . . . . . . . . . . . . . . Highest Temperature 273 | . 131 217 225 6 . 126 . 170 213 231 . 181 57 . 273 253 70 . 109 203 Average Temperature 59 | . 27 59 61 4 . 60 . 24 104 110 . 80 15 . 73 130 38 . 46 79 Received Heat Transfer 793 | . 183 12 345 63 . 24 . . . . . . . . 57 . . . . 109 Effects 1 | . . . . . . . . . . . . . . . . . . . . 1 Interference 1 | . . . . . . . . . . . . . . . . . . . . 1 Siege Activations . | . . . . . . . . . . . . . . . . . . . . . Martial Activations . | . . . . . . . . . . . . . . . . . . . . . Shielding Activations . | . . . . . . . . . . . . . . . . . . . . . Robots Disrupted . | . . . . . . . . . . . . . . . . . . . . . Combat Hostiles . | . . . . . . . . . . . . . . . . . . . . . Robots Corrupted . | . . . . . . . . . . . . . . . . . . . . . Combat Hostiles . | . . . . . . . . . . . . . . . . . . . . . Parts Fried . | . . . . . . . . . . . . . . . . . . . . . Impact Corruptions . | . . . . . . . . . . . . . . . . . . . . . Robots Melted 2 | . . . 2 . . . . . . . . . . . . . . . . . Combat Hostiles 2 | . . . 2 . . . . . . . . . . . . . . . . . Parts Melted 11 | . . . 11 . . . . . . . . . . . . . . . . . Heat Transferred 2326 | 275 275 . 1776 . . . . . . . . . . . . . . . . . Parts Sabotaged . | . . . . . . . . . . . . . . . . . . . . . Parts Stolen . | . . . . . . . . . . . . . . . . . . . . . Parts Stripped . | . . . . . . . . . . . . . . . . . . . . . Power Chain Reactions . | . . . . . . . . . . . . . . . . . . . . . Alert | -11 -10 -10 -10 -9 -9 -6 -6 -6 -6 -6 -6 -5 -5 -5 -5 -5 -5 -5 -4 -4 ------- Run | Yrd Mat Min Sub Rec Scr Fac Was Fac Low Low Dat Pro Fac Was Fac Upp Upp Zhi Pro Fac Maximum Alert Level 3 | . . . . 1 . . . 2 . . . . 2 . . . . . . 3 Low Security (%) 79 | 100 100 100 . 86 . 100 100 23 . . . . 42 100 100 . . . . 19 Level 1 8 | . . . . 13 . . . 22 . . . . 23 . . . . . . 37 Level 2 9 | . . . . . . . . 53 . . . . 34 . . . . . . 14 Level 3 1 | . . . . . . . . . . . . . . . . . . . . 28 Level 4 . | . . . . . . . . . . . . . . . . . . . . . Level 5 . | . . . . . . . . . . . . . . . . . . . . . High Security . | . . . . . . . . . . . . . . . . . . . . . Max Security . | . . . . . . . . . . . . . . . . . . . . . Peak Influence 890 | 10 91 90 . 234 . 171 59 620 . . . . 613 59 149 . . . . 890 Initial 450 | . . 4 . 213 . . 59 . . . . . 450 44 27 . . . . 150 Average 125 | . 33 8 . 128 . 46 12 386 . . . . 300 51 22 . . . . 453 Influence Increases 6023 | 55 497 117 636 304 . 362 . 985 15 75 . 10 852 15 531 30 55 15 65 1404 Destroy 0b10 Robot/C 1380 | . 260 80 260 80 . 20 . 380 . . . . . . 80 . 40 . 20 160 Destroy 0b10 Robot/NC 315 | 55 40 5 . . . 10 . 15 . . . 10 50 . 45 15 5 15 15 35 Destroy Leader 270 | . 68 10 20 . . 10 . 112 . . . . 8 . 10 . 10 . . 22 Allied During Kill 392 | . . 11 11 . . . . 370 . . . . . . . . . . . . Successful Hack 169 | . 18 . . 13 . 37 . 15 . . . . 42 . 25 . . . . 19 Select Force Hacks 300 | . 60 . . 210 . 30 . . . . . . . . . . . . . . Disable Machine 210 | . 45 . . . . 30 . . . . . . 15 . 60 . . . . 60 Anti-Garrison Action 600 | . . . . . . . . . . . . . 200 . . . . . . 400 Destroy Structure 212 | . 6 11 . 1 . 15 . 3 . . . . 72 . 56 . . . . 48 Advance Influence 600 | . . . . . . . . . . . . . 450 . . . . . . 150 Partial Spotted 450 | . . . . . . 105 . 75 . . . . 15 15 90 . . . . 150 Lose Combat Pursuer 1125 | . . . 345 . . 105 . 15 15 75 . . . . 165 15 . . 30 360 Influence Decreases 5133 | 55 485 129 191 734 15 191 171 463 537 75 . 10 724 104 528 72 55 15 65 514 Entered New Map 673 | . . 8 . 232 15 . 112 . 194 . . . . 84 12 16 . . . . Time Decay 3615 | 55 485 121 150 502 . 181 59 278 343 75 . 10 574 20 327 46 55 15 65 254 Search Patrol Dispatched 150 | . . . . . . . . . . . . . 150 . . . . . . . Lost Part 190 | . . . 30 . . 10 . 10 . . . . . . 20 10 . . . 110 Lost Ally 218 | . . . 11 . . . . 175 . . . . . . 32 . . . . . Purge Threat 287 | . . . . . . . . . . . . . . . 137 . . . . 150 Squads Dispatched 66 | . 4 1 . . . 8 . 10 . . . . 13 . 17 . . . . 13 Investigation 44 | . 3 1 . . . 6 . 6 . . . . 7 . 13 . . . . 8 Extermination 10 | . . . . . . 1 . 1 . . . . 4 . 3 . . . . 1 Reinforcement 9 | . 1 . . . . 1 . 3 . . . . 2 . 1 . . . . 1 Assault . | . . . . . . . . . . . . . . . . . . . . . Garrison 3 | . . . . . . . . . . . . . . . . . . . . 3 Intercept . | . . . . . . . . . . . . . . . . . . . . . Searches Triggered 1 | . . . . . . . . . . . . . 1 . . . . . . . Data Miner Redirects 2 | . . . . . . . . . . . . . . . . . . . . 2 Construction Impeded 3 | . . . . . . . . 1 . . . . . . 1 . . . . 1 Haulers Reinforced 1 | . . . . . . . . . . . . . 1 . . . . . . . Active Scanning Responses . | . . . . . . . . . . . . . . . . . . . . . Cargo Convoy Interrupts . | . . . . . . . . . . . . . . . . . . . . . Stealth | -11 -10 -10 -10 -9 -9 -6 -6 -6 -6 -6 -6 -5 -5 -5 -5 -5 -5 -5 -4 -4 --------- Run | Yrd Mat Min Sub Rec Scr Fac Was Fac Low Low Dat Pro Fac Was Fac Upp Upp Zhi Pro Fac Distress Signals 8 | . 1 . . . . 1 . 1 . . . . . . 1 . . . . 4 Communications Jammed 8 | . . . . . . . . . . . . . . . 3 . . . . 5 Distress Signals 8 | . . . . . . . . . . . . . . . 3 . . . . 5 Times Spotted 197 | . 24 4 29 3 . 18 . 10 2 7 . 3 8 6 25 1 1 . 4 52 Peak Tracking Total 21 | . 3 3 3 1 . 7 . 2 4 5 . 2 2 6 10 1 1 . 3 21 Tactical Retreats 30 | . . . 5 . . 5 . 1 1 1 . . . . 4 1 . . 2 10 Traps | -11 -10 -10 -10 -9 -9 -6 -6 -6 -6 -6 -6 -5 -5 -5 -5 -5 -5 -5 -4 -4 ------- Run | Yrd Mat Min Sub Rec Scr Fac Was Fac Low Low Dat Pro Fac Was Fac Upp Upp Zhi Pro Fac Traps Triggered 13 | . 2 . 1 . . 3 . 1 . . . . 2 . 3 . . . . 1 Indirectly . | . . . . . . . . . . . . . . . . . . . . . Trap Hack Attempts . | . . . . . . . . . . . . . . . . . . . . . Triggered . | . . . . . . . . . . . . . . . . . . . . . Disarmed . | . . . . . . . . . . . . . . . . . . . . . Reprogrammed . | . . . . . . . . . . . . . . . . . . . . . Reused . | . . . . . . . . . . . . . . . . . . . . . Traps Extracted . | . . . . . . . . . . . . . . . . . . . . . Installed . | . . . . . . . . . . . . . . . . . . . . . Triggered . | . . . . . . . . . . . . . . . . . . . . . Machines | -11 -10 -10 -10 -9 -9 -6 -6 -6 -6 -6 -6 -5 -5 -5 -5 -5 -5 -5 -4 -4 ---------- Run | Yrd Mat Min Sub Rec Scr Fac Was Fac Low Low Dat Pro Fac Was Fac Upp Upp Zhi Pro Fac Machines Disabled 19 | . 3 . 4 . . 2 . . . . . . 1 . 4 . . 1 . 4 Max in Single Turn 3 | . 1 . 3 . . 1 . . . . . . 1 . 1 . . 1 . 1 Garrison Access 10 | . . . . . . 1 . 2 . . . . 2 . 3 . . . . 2 Machines Repaired . | . . . . . . . . . . . . . . . . . . . . . Machines Dismantled . | . . . . . . . . . . . . . . . . . . . . . Machines Sabotaged . | . . . . . . . . . . . . . . . . . . . . . Overloaded Fab Kills . | . . . . . . . . . . . . . . . . . . . . . Hacking | -11 -10 -10 -10 -9 -9 -6 -6 -6 -6 -6 -6 -5 -5 -5 -5 -5 -5 -5 -4 -4 --------- Run | Yrd Mat Min Sub Rec Scr Fac Was Fac Low Low Dat Pro Fac Was Fac Upp Upp Zhi Pro Fac Machines Accessed 134 | . 8 2 2 12 9 16 . 18 1 . 4 . 19 . 26 . 1 4 1 11 Terminals 46 | . 5 1 . 5 . 6 . 9 . . . . 8 . 8 . . . 1 3 Fabricators 11 | . . . . . . 1 . 2 . . . . 2 . 5 . . . . 1 Repair Stations 6 | . 1 . . . . 2 . . . . . . . . 2 . . . . 1 Recycling Units 30 | . 2 . . 7 . 4 . 2 . . . . 5 . 6 . . . . 4 Scanalyzers 7 | . . . . . . 1 . 3 . . . . 2 . 1 . . . . . Garrison Access 12 | . . . . . . 2 . 2 . . . . 2 . 4 . . . . 2 Total Hacks 357 | . 23 4 12 25 62 28 . 35 1 . 28 . 40 . 62 . 1 16 1 19 Successful 243 | . 11 1 12 13 62 20 . 9 1 . 28 . 24 . 31 . 1 16 1 13 Failed 114 | . 12 3 . 12 . 8 . 26 . . . . 16 . 31 . . . . 6 Catastrophic 25 | . 4 . . 4 . 3 . 6 . . . . 3 . 5 . . . . . Database Lockouts . | . . . . . . . . . . . . . . . . . . . . . Manual 96 | . 10 . . 17 . 10 . 10 . . . . 13 . 26 . . . . 10 Terminals 114 | . 17 3 . 12 . 12 . 20 . . . . 17 . 25 . . . 1 7 Fabricators 28 | . . . . . . 3 . 3 . . . . 5 . 15 . . . . 2 Repair Stations 9 | . 2 . . . . 3 . . . . . . . . 3 . . . . 1 Recycling Units 50 | . 4 . . 13 . 4 . 4 . . . . 9 . 12 . . . . 4 Scanalyzers 12 | . . . . . . 2 . 5 . . . . 4 . 1 . . . . . Garrison Access 23 | . . . . . . 4 . 3 . . . . 5 . 6 . . . . 5 Terminal Hacks 165 | . 6 1 12 3 62 7 . 1 1 . 28 . 10 . 13 . 1 16 1 3 Record 85 | . . . 11 . 57 . . . . . 11 . . . . . . 5 1 . Part Schematic 21 | . 1 . . 3 . 3 . . . . 9 . 1 . 1 . . 3 . . Robot Schematic 6 | . 1 . . . . . . . . . 5 . . . . . . . . . Robot Analysis 8 | . . . . . 4 . . . . . . . . . . . . 4 . . Prototype ID Bank 12 | . 2 . . . . 1 . . . . 3 . 1 . 1 . . 4 . . Open Door 3 | . . 1 . . . . . . 1 . . . . . . . 1 . . . Branch Access Points 3 | . . . . . . 1 . . . . . . . . 1 . . . . 1 Emergency Access Points 4 | . . . . . . 1 . . . . . . . . 3 . . . . . Terminal Index 1 | . . . . . . . . . . . . . 1 . . . . . . . Fabricator Index 1 | . . . . . . . . 1 . . . . . . . . . . . . Alert Level 2 | . . . . . . . . . . . . . . . 2 . . . . . Unreport Threat 2 | . . . . . . . . . . . . . . . 1 . . . . 1 Locate Traps 8 | . 2 . . . . . . . . . . . 4 . 2 . . . . . Recall Extermination 1 | . . . . . . . . . . . . . . . 1 . . . . . Hauler Manifests 2 | . . . . . . . . . . . . . 1 . 1 . . . . . Zone Layout 4 | . . . . . . 1 . . . . . . 2 . . . . . . 1 Proto ID Catalog 2 | . . . 1 . 1 . . . . . . . . . . . . . . . Fabricator Hacks 11 | . . . . . . 1 . 2 . . . . 3 . 4 . . . . 1 Network Status 2 | . . . . . . . . . . . . . 1 . 1 . . . . . Load Schematic 6 | . . . . . . 1 . 1 . . . . 1 . 2 . . . . 1 Build 3 | . . . . . . . . 1 . . . . 1 . 1 . . . . . Repair Station Hacks 4 | . 2 . . . . 2 . . . . . . . . . . . . . . Scan Component 2 | . 1 . . . . 1 . . . . . . . . . . . . . . Repair 2 | . 1 . . . . 1 . . . . . . . . . . . . . . Recycling Unit Hacks 5 | . 1 . . 3 . . . . . . . . 1 . . . . . . . Retrieve Components 5 | . 1 . . 3 . . . . . . . . 1 . . . . . . . Scanalyzer 7 | . . . . . . 2 . 2 . . . . 3 . . . . . . . Insert Component 3 | . . . . . . 1 . 1 . . . . 1 . . . . . . . Analyze 4 | . . . . . . 1 . 1 . . . . 2 . . . . . . . Garrison Access Hacks 7 | . . . . . . 1 . 2 . . . . 1 . 3 . . . . . Seal Access 7 | . . . . . . 1 . 2 . . . . 1 . 3 . . . . . Unauthorized Hacks 44 | . 2 . . 7 . 7 . 2 . . . . 6 . 11 . . . . 9 Terminals 2 | . . . . . . 1 . . . . . . . . . . . . . 1 Assimilate 1 | . . . . . . 1 . . . . . . . . . . . . . . Operators 1 | . . . . . . . . . . . . . . . . . . . . 1 Fabricators 6 | . . . . . . 1 . . . . . . 1 . 3 . . . . 1 Liberate 1 | . . . . . . . . . . . . . . . 1 . . . . . Recompile 5 | . . . . . . 1 . . . . . . 1 . 2 . . . . 1 Repair Stations 4 | . . . . . . 1 . . . . . . . . 2 . . . . 1 Patch 4 | . . . . . . 1 . . . . . . . . 2 . . . . 1 Recycling Units 29 | . 2 . . 7 . 4 . 2 . . . . 4 . 6 . . . . 4 Tunnel 10 | . 2 . . 7 . 1 . . . . . . . . . . . . . . Fedlink 19 | . . . . . . 3 . 2 . . . . 4 . 6 . . . . 4 Scanalyzers . | . . . . . . . . . . . . . . . . . . . . . Garrison Access 3 | . . . . . . . . . . . . . 1 . . . . . . 2 Jam 3 | . . . . . . . . . . . . . 1 . . . . . . 2 Data Cores Recovered 1 | . 1 . . . . . . . . . . . . . . . . . . . Used 1 | . 1 . . . . . . . . . . . . . . . . . . . Hacking Detections 70 | . 6 1 . 7 . 8 . 15 . . . . 13 . 16 . . . . 4 Full Trace Events 9 | . 2 . . 1 . . . 2 . . . . 1 . 3 . . . . . Feedback Events . | . . . . . . . . . . . . . . . . . . . . . Feedback Blocked . | . . . . . . . . . . . . . . . . . . . . . Robot Schematics Acquired 6 | . 1 . . . . . . . . . 5 . . . . . . . . . Robots Built . | . . . . . . . . . . . . . . . . . . . . . Authchips . | . . . . . . . . . . . . . . . . . . . . . Time . | . . . . . . . . . . . . . . . . . . . . . Total Robot Build Rating . | . . . . . . . . . . . . . . . . . . . . . Part Schematics Acquired 24 | . 1 . . 3 . 4 . 1 . . 9 . 2 . 1 . . 3 . . Parts Built 4 | . . . . . . . . 1 . . . . 2 . 1 . . . . . Authchips 3 | . . . . . . . . 1 . . . . 1 . 1 . . . . . Time 256 | . . . . . . . . 44 . . . . 106 . 106 . . . . . Total Part Build Rating 22 | . . . . . . . . 4 . . . . 12 . 6 . . . . . Parts Repaired 2 | . 1 . . . . 1 . . . . . . . . . . . . . . Time 58 | . 26 . . . . 32 . . . . . . . . . . . . . . Parts Recycled . | . . . . . . . . . . . . . . . . . . . . . Recycled Matter . | . . . . . . . . . . . . . . . . . . . . . Retrieved Matter . | . . . . . . . . . . . . . . . . . . . . . Retrieved Components 16 | . 10 . . 4 . . . . . . . . 2 . . . . . . . Parts Scanalyzed 3 | . . . . . . 1 . 1 . . . . 1 . . . . . . . Part Schematics Acquired 3 | . . . . . . 1 . 1 . . . . 1 . . . . . . . Parts Damaged . | . . . . . . . . . . . . . . . . . . . . . Bothacking | -11 -10 -10 -10 -9 -9 -6 -6 -6 -6 -6 -6 -5 -5 -5 -5 -5 -5 -5 -4 -4 ------------ Run | Yrd Mat Min Sub Rec Scr Fac Was Fac Low Low Dat Pro Fac Was Fac Upp Upp Zhi Pro Fac Used RIF Installer . | . . . . . . . . . . . . . . . . . . . . . Robots Hacked 5 | . . . . . 4 1 . . . . . . . . . . . . . . Non-combat 1 | . . . . . . 1 . . . . . . . . . . . . . . Combat 4 | . . . . . 4 . . . . . . . . . . . . . . . Robot Hacks Applied 5 | . . . . . 4 1 . . . . . . . . . . . . . . parse_system 4 | . . . . . 4 . . . . . . . . . . . . . . . find_chute 1 | . . . . . . 1 . . . . . . . . . . . . . . Relay Couplers Released . | . . . . . . . . . . . . . . . . . . . . . Fabnet Peak Effective % . | . . . . . . . . . . . . . . . . . . . . . Robots Rewired . | . . . . . . . . . . . . . . . . . . . . . Allies Hacked . | . . . . . . . . . . . . . . . . . . . . . Hacks Repelled . | . . . . . . . . . . . . . . . . . . . . . Allies | -11 -10 -10 -10 -9 -9 -6 -6 -6 -6 -6 -6 -5 -5 -5 -5 -5 -5 -5 -4 -4 -------- Run | Yrd Mat Min Sub Rec Scr Fac Was Fac Low Low Dat Pro Fac Was Fac Upp Upp Zhi Pro Fac Total Allies 26 | . . 3 . . . 1 20 . . . . . . . 2 . . . . . Largest Group 21 | . . 3 3 . . 1 21 18 . . . . . . 2 . . . . . Highest-Rated Group 750 | . . 40 39 . . 10 750 675 . . . . . . 98 . . . . . Highest-Rated Ally 49 | . . 16 16 . . 10 47 47 . . . . . . 49 . . . . . Total Orders . | . . . . . . . . . . . . . . . . . . . . . Ally Attacks 174 | . . 5 16 . . . . 149 . . . . . . 4 . . . . . Total Damage 3441 | . . 42 159 . . . . 3097 . . . . . . 143 . . . . . Kills 20 | . . 1 2 . . . . 17 . . . . . . . . . . . . Allies Corrupted 1 | . . . . . . . . 1 . . . . . . . . . . . . Allies Melted . | . . . . . . . . . . . . . . . . . . . . . Intel | -11 -10 -10 -10 -9 -9 -6 -6 -6 -6 -6 -6 -5 -5 -5 -5 -5 -5 -5 -4 -4 ------- Run | Yrd Mat Min Sub Rec Scr Fac Was Fac Low Low Dat Pro Fac Was Fac Upp Upp Zhi Pro Fac Active Infowar (turns) 9125 | 252 585 . . 1 . 12 49 136 1132 1021 34 407 1757 42 1635 541 293 259 486 483 Optics 5355 | . . . . . . . . . . . . . 1757 42 1635 541 293 259 486 342 Sensors 7416 | . . . . . . . 20 136 1132 1021 34 397 1690 42 1277 499 174 246 330 418 Structural 3579 | . 505 . . . . . . . 1110 1021 34 400 208 . 58 62 80 . 96 5 Seismic 332 | 252 80 . . . . . . . . . . . . . . . . . . . Triangulation 1 | . . . . . . . . . . . . . 1 . . . . . . . Jamming 816 | . . . . . . 12 29 . . . . . 200 . 339 . . . . 236 ECM 3 | . . . . 1 . . . . . . . . 2 . . . . . . . Robot Analysis Total 8 | . . . . . 4 . . . . . . . . . . . . 4 . . Derelict Logs Recovered 17 | . . 2 2 . 3 . . . 3 1 . 3 . . . 1 2 . . . Drone Launches . | . . . . . . . . . . . . . . . . . . . . . Drone Recoveries . | . . . . . . . . . . . . . . . . . . . . . Exploration | -11 -10 -10 -10 -9 -9 -6 -6 -6 -6 -6 -6 -5 -5 -5 -5 -5 -5 -5 -4 -4 ------------- Run | Yrd Mat Min Sub Rec Scr Fac Was Fac Low Low Dat Pro Fac Was Fac Upp Upp Zhi Pro Fac Turns Passed 24191 | 484 1770 1636 6799 1345 2624 392 327 616 1132 1021 57 423 1757 42 1635 541 293 259 486 552 Spaces Moved 23061 | 254 890 701 2936 786 2365 867 603 1181 1051 744 120 434 2578 104 3346 708 724 519 1263 887 Core 77 | 5 . . . . . . . . . . . . . 1 . . . . . 71 Treads 6991 | 249 890 701 2936 786 1429 . . . . . . . . . . . . . . . Legs . | . . . . . . . . . . . . . . . . . . . . . Wheels . | . . . . . . . . . . . . . . . . . . . . . Hover . | . . . . . . . . . . . . . . . . . . . . . Flight 15993 | . . . . . 936 867 603 1181 1051 744 120 434 2578 103 3346 708 724 519 1263 816 Fastest Speed 22 | 50 160 160 160 160 32 25 26 27 27 27 27 27 22 27 27 29 29 29 29 26 Average Speed 83 | 157 160 228 211 161 109 26 26 27 97 98 28 90 28 34 28 29 29 29 29 32 Slowest Speed 450 | 160 160 240 330 165 272 29 28 31 105 105 29 105 105 450 29 29 29 29 29 200 Overloaded Moves . | . . . . . . . . . . . . . . . . . . . . . Propulsion Burnouts . | . . . . . . . . . . . . . . . . . . . . . Robots Hopped 39 | . . . . . 1 4 . 12 . . . . 15 . 6 . . . . 1 Potential Cave-ins 4 | . . . . . . 4 . . . . . . . . . . . . . . Cave-ins Triggered . | . . . . . . . . . . . . . . . . . . . . . Exploration Rate (%) 73 | 16 96 100 98 96 94 32 96 26 77 85 75 67 52 90 68 84 76 96 85 27 Regions Visited 20 Branch Regions 12 Pre-discovered Areas 24 | . 2 . 1 7 7 2 . . . . 1 1 . . . . . 3 . . Known Exits Taken 10 | . . . . . . . . 1 1 1 1 1 . . 1 1 1 1 1 . Unknown Exits Taken 6 | 1 1 1 1 1 1 . . . . . . . . . . . . . . . Scrap Searched 31 | . . 2 6 . 7 . . . 3 3 . 2 . . . 4 3 . 1 . Spaces Dug 111 | . . 10 1 . . 15 . . 4 . . . 36 . 24 . . . 5 16 Terrain Destroyed 218 | . 5 12 59 1 . 19 . . 4 . . 4 36 . 32 . 2 . 11 33 Melee 98 | . . . 1 . . 13 . . 4 . . . 36 . 24 . . . 5 15 Projectile 62 | . 5 2 10 1 . 6 . . . . . 4 . . 8 . 2 . 6 18 AOE 58 | . . 10 48 . . . . . . . . . . . . . . . . . Terrain Rammed . | . . . . . . . . . . . . . . . . . . . . . Walls Destroyed . | . . . . . . . . . . . . . . . . . . . . . Machines Disabled . | . . . . . . . . . . . . . . . . . . . . . Actions | -11 -10 -10 -10 -9 -9 -6 -6 -6 -6 -6 -6 -5 -5 -5 -5 -5 -5 -5 -4 -4 --------- Run | Yrd Mat Min Sub Rec Scr Fac Was Fac Low Low Dat Pro Fac Was Fac Upp Upp Zhi Pro Fac Total 26888 | 290 1127 723 3252 840 2407 984 751 1428 1147 1033 140 447 3491 109 3920 1024 783 598 1349 1045 Wait 2593 | . 123 4 87 26 . 37 89 227 79 285 13 4 799 2 391 279 29 28 53 38 Move 22966 | 253 889 700 2935 785 2362 860 602 1156 1050 743 119 433 2548 103 3333 707 723 518 1262 885 Hop 38 | . . . . . 1 3 . 12 . . . . 15 . 6 . . . . 1 Pick Up 122 | 8 19 3 19 1 11 5 4 2 2 . . . 7 . 28 3 2 3 . 5 Fast Attach 128 | 7 6 1 7 6 1 16 11 4 . 2 3 . 13 2 16 7 4 13 4 5 Attach 35 | . . . 5 . 6 3 . 2 1 . . . 3 . 6 2 . . . 7 Detach 6 | . . . . . . . 1 1 . . . . 1 . . . . . . 3 Swap 161 | . 7 3 26 1 . 3 12 5 6 1 2 5 8 . 30 8 10 2 12 20 Drop 222 | . 23 4 23 8 22 14 21 6 2 2 3 . 19 2 33 8 5 15 4 8 Fire 282 | 22 60 6 120 11 . 6 . 13 . . . 5 1 . 14 . 2 . 6 16 Melee 267 | . . . 30 . 4 21 11 . 7 . . . 67 . 45 10 8 19 8 37 Ram 2 | . . . . . . . . . . . . . . . . . . . . 2 Kick . | . . . . . . . . . . . . . . . . . . . . . Crush 4 | . . 2 . 2 . . . . . . . . . . . . . . . . Escape Stasis 62 | . . . . . . 16 . . . . . . 10 . 18 . . . . 18 Rewire . | . . . . . . . . . . . . . . . . . . . . . Trap . | . . . . . . . . . . . . . . . . . . . . . Miscellaneous . | . . . . . . . . . . . . . . . . . . . . . Route ------- -11/Scrapyard -10/Materials (discovered 5 exits: [*Mat x3] / *Min / *Sub) -10/Mines (discovered 3 exits: [*Mat x2] / *Sub) -10/Subcaves (discovered 3 exits: [*Mat x2] / *Rec) -9/Recycling (discovered 2 exits: [*Fac] / *Scr) -9/Scraptown (discovered 2 exits: *Fac x2) -6/Factory (discovered 5 exits: *Fac x3 / *Low x2) -6/Waste -6/Factory -6/Lower Caves -6/Lower Caves (discovered 2 exits: *Fac / *Dat) -6/Data Miner -5/Proximity Caves -5/Factory (discovered 2 exits: *Fac / Upp) -5/Waste -5/Factory (discovered 4 exits: *Fac x2 / *Upp x2) -5/Upper Caves -5/Upper Caves (discovered 2 exits: *Fac / *Zhi) -5/Zhirov -4/Proximity Caves -4/Factory (discovered 5 exits: Upp x2 / Ext x2 / *Arm) History --------- Turn | Location | Event 13 | -11/Scrapyard | Discovered new exit (range 15) 485 | -11/Scrapyard | Entered Materials 486 | -10/Materials | Build established: Mutant 1036 | -10/Materials | Discovered new exit (range 7) 1331 | -10/Materials | Repaired Ion Engine 1362 | -10/Materials | Discovered new exit (range 11) 1431 | -10/Materials | Discovered new exit (range 7) 1470 | -10/Materials | Discovered new exit (range 16) 1859 | -10/Materials | Discovered new exit (range 11) 2255 | -10/Materials | Entered Mines 2413 | -10/Mines | Met a Derelict shopkeep closing up shop 2603 | -10/Mines | Learned Materials trap positions 2651 | -10/Mines | Discovered new exit (range 12) 2752 | -10/Mines | Assisted by bots powering up and referring to "LRC-V3" 3340 | -10/Mines | Discovered new exit (range 8) 3419 | -10/Mines | Discovered new exit (range 6) 3664 | -10/Mines | Learned location of 1 exit from Materials 3891 | -10/Mines | Entered Subcaves 3891 | -10/Subcaves | Accompanied by 3 allies 3995 | -10/Subcaves | A swath of the cavern ceiling suddenly collapsed 4064 | -10/Subcaves | Lost 3 allies 4071 | -10/Subcaves | A swath of the cavern ceiling suddenly collapsed 4389 | -10/Subcaves | Disturbed a concealed Subdweller 4921 | -10/Subcaves | Shifting Twisted Machinery released Sub. Beam Cannon 4932 | -10/Subcaves | Shifting Twisted Machinery released Flamer 5122 | -10/Subcaves | Visited 4L-MR0's lab 5154 | -10/Subcaves | Found Power Bank 5465 | -10/Subcaves | Discovered new exit (range 11) 5819 | -10/Subcaves | Shifting Twisted Machinery released Riot Gun 5898 | -10/Subcaves | Disturbed a concealed Subdweller 6138 | -10/Subcaves | Shifting Twisted Machinery released Battle Rifle 6183 | -10/Subcaves | Ambushed by Subdwellers from Twisted Machinery 6429 | -10/Subcaves | Shifting Twisted Machinery released Mak. System Restoration Module 6448 | -10/Subcaves | Shifting Twisted Machinery released Ripper 6520 | -10/Subcaves | Visited Clippyterm 6527 | -10/Subcaves | Learned Research machine intel 6857 | -10/Subcaves | Core integrity fell below 50% 9046 | -10/Subcaves | Discovered new exit (range 8) 9080 | -10/Subcaves | Learned Materials trap positions 9092 | -10/Subcaves | Learned location of Zion (-7) 9312 | -10/Subcaves | Ambushed by Subdweller buried in earth 9346 | -10/Subcaves | Discovered new exit (range 9) 10690 | -10/Subcaves | Entered Recycling 11492 | -9/Recycling | Discovered new exit (range 15) 11998 | -9/Recycling | Scanned before Scraplab entrance 12020 | -9/Recycling | Entered Scraplab 12033 | -9/Recycling | Discovered new exit (range 2) 12035 | -9/Recycling | Entered Scraptown 12366 | -9/Scraptown | Heard Great Nut preacher, LISTEN AND RECITE! 12407 | -9/Scraptown | Scanned Subdweller tech in exchange for log data 12412 | -9/Scraptown | Learned location of 2 exits from Lower Caves 12414 | -9/Scraptown | Learned Factory emergency access door positions 12415 | -9/Scraptown | Learned location of 1 exit from Factory 12449 | -9/Scraptown | Discovered new exit (range 5) 12588 | -9/Scraptown | Visited The Evicted 12654 | -9/Scraptown | Visited Awakened 12745 | -9/Scraptown | Visited Symbiants 13063 | -9/Scraptown | Visited Comm Corps 13131 | -9/Scraptown | Visited Red Mages 13183 | -9/Scraptown | Visited UFD Registry 13204 | -9/Scraptown | Visited Cyclists 13238 | -9/Scraptown | Visited Shadow of the Wyrm 13286 | -9/Scraptown | Registered with UFD as "Nullunit" 13335 | -9/Scraptown | Entered Cyclist Reading Room 13343 | -9/Scraptown | Learned location of Exiles (-9) 13439 | -9/Scraptown | Visited Cartography Club 13481 | -9/Scraptown | Visited Scrap Suit Storage 13513 | -9/Scraptown | Visited Chapter 10 13579 | -9/Scraptown | Visited Analyses Database 13615 | -9/Scraptown | Visited Science Testing Area 13643 | -9/Scraptown | Visited DA-N13 Charitable Foundation 13657 | -9/Scraptown | Found DCF Scrap (29 items) 13723 | -9/Scraptown | Visited Science Guys 14025 | -9/Scraptown | Visited Observation Area 14087 | -9/Scraptown | Visited Scrapoid Pod Storage 14116 | -9/Scraptown | Visited Junk Repository 14444 | -9/Scraptown | Learned location of Proximity Caves (-4) 14444 | -9/Scraptown | Learned location of Lower Caves (-6) 14444 | -9/Scraptown | Learned 8 Materials zone layouts 14444 | -9/Scraptown | Learned 24 Factory zone layouts 14444 | -9/Scraptown | Learned 4 Access zone layouts 14444 | -9/Scraptown | Learned 4 Mines zone layouts 14444 | -9/Scraptown | Learned 12 Lower Caves zone layouts 14444 | -9/Scraptown | Learned 8 Upper Caves zone layouts 14444 | -9/Scraptown | Learned 16 Upper Caves zone layouts 14444 | -9/Scraptown | Learned 24 Upper Caves zone layouts 14444 | -9/Scraptown | Learned 8 Proximity Caves zone layouts 14444 | -9/Scraptown | Learned 20 Proximity Caves zone layouts 14444 | -9/Scraptown | Learned location of 3 exits from Factory 14444 | -9/Scraptown | Learned location of 1 exit from Upper Caves 14512 | -9/Scraptown | Found Deep Structural Scanner 14636 | -9/Scraptown | Build established: Derelict-Sprinter 14640 | -9/Scraptown | Met Optimus 14640 | -9/Scraptown | Accepted into 0bPrime 14659 | -9/Scraptown | Discovered new exit (range 3) 14659 | -9/Scraptown | Entered Factory 14659 | -6/Factory | Evolved 8 slots: Propulsion x3, Utility x3, Weapon x2 14660 | -6/Factory | Identified exit to Lower Caves 14660 | -6/Factory | Identified exit to Factory 14723 | -6/Factory | Loaded intel: 8 recycling unit locations 14728 | -6/Factory | Learned location of Protoforge (-2) 14870 | -6/Factory | Repaired VTOL Module 15051 | -6/Factory | Manually triggered Chute Trap 15051 | -6/Factory | Sucked down chute 15051 | -6/Factory | Entered Waste 15052 | -6/Waste | Joined by Warlord forces that had cleared the area 15071 | -6/Waste | 1 allies followed down the chute 15112 | -6/Waste | Discovered new exit (range 12) 15285 | -6/Waste | Murdered 3 allies 15314 | -6/Waste | Identified exit to Factory 15378 | -6/Waste | Entered Factory 15378 | -6/Factory | Accompanied by 18 allies 15543 | -6/Factory | Fabricated Cld. VTOL Module (x1) 15552 | -6/Factory | Discovered exit to Lower Caves (range 14) 15593 | -6/Factory | Loaded intel: 8 recycling unit locations 15771 | -6/Factory | Build established: Scavenger-Sprinter 15819 | -6/Factory | Spotted B-75 Beast 15994 | -6/Factory | Entered Lower Caves 15995 | -6/Lower Caves | Identified exit to Lower Caves 16160 | -6/Lower Caves | Learned Factory security intel 16258 | -6/Lower Caves | Encountered a Warlord checkpoint 16319 | -6/Lower Caves | Build established: Derelict-Skirmisher 16418 | -6/Lower Caves | Learned location of 1 exit from Proximity Caves 17126 | -6/Lower Caves | Entered another Lower Caves area 17200 | -6/Lower Caves | Entered a destroyed Warlord outpost 17413 | -6/Lower Caves | Build established: Derelict-Assassin 17501 | -6/Lower Caves | Learned Factory stockpile data 18134 | -6/Lower Caves | Discovered new exit (range 13) 18143 | -6/Lower Caves | Identified exit to Data Miner 18147 | -6/Lower Caves | Entered Data Miner 18148 | -6/Data Miner | Identified exit to Proximity Caves 18155 | -6/Data Miner | Met Data Miner 18160 | -6/Data Miner | Learned location of Section 7 (-2) 18160 | -6/Data Miner | Acquired the access code to Warlord's prototype stash 18168 | -6/Data Miner | Received God Mode back door access code from Data Miner 18204 | -6/Data Miner | Entered Proximity Caves 18207 | -5/Proximity Caves | Spotter reported a threat 18207 | -5/Proximity Caves | Spotter reported a threat 18226 | -5/Proximity Caves | Learned Factory emergency access door positions 18260 | -5/Proximity Caves | Spotter reported a threat 18387 | -5/Proximity Caves | Learned Factory garrison access intel 18537 | -5/Proximity Caves | Build established: Derelict-Skirmisher 18627 | -5/Proximity Caves | Entered Factory 18627 | -5/Factory | Evolved 2 slots: Propulsion x1, Utility x1 18628 | -5/Factory | Identified exit to Upper Caves 18632 | -5/Factory | Loaded intel: 4 garrison access locations 18947 | -5/Factory | Discovered new exit (range 19) 18953 | -5/Factory | Loaded intel: 8 recycling unit locations 19191 | -5/Factory | Fabricated KE Penetrator (x2) 19227 | -5/Factory | Search patrols dispatched 19487 | -5/Factory | Build established: Infiltrator-Ninja 20026 | -5/Factory | Spotted B-75 Beast 20384 | -5/Factory | Manually triggered Chute Trap 20384 | -5/Factory | Sucked down chute 20384 | -5/Factory | Entered Waste 20385 | -5/Waste | Spotted C-40 Crusher 20387 | -5/Waste | Spotted C-40 Crusher 20388 | -5/Waste | Spotted C-40 Crusher 20395 | -5/Waste | Spotted C-40 Crusher 20398 | -5/Waste | Spotted C-40 Crusher 20399 | -5/Waste | EMP discharged 20402 | -5/Waste | Spotted C-40 Crusher 20411 | -5/Waste | Discovered new exit (range 11) 20413 | -5/Waste | Identified exit to Factory 20426 | -5/Waste | Entered Factory 20578 | -5/Factory | Loaded intel: 8 recycling unit locations 20714 | -5/Factory | Build established: Ninja 20865 | -5/Factory | Fabricated Nuclear Pulse Array (x1) 21185 | -5/Factory | Build established: Machinist-Ninja 21499 | -5/Factory | System corruption reached 10% 21868 | -5/Factory | Lost 3 parts (1u2w) 21885 | -5/Factory | Spotted B-75 Beast 21930 | -5/Factory | Discovered new exit (range 5) 21994 | -5/Factory | Discovered new exit (range 3) 22061 | -5/Factory | Entered Upper Caves 22062 | -5/Upper Caves | Identified exit to Upper Caves 22075 | -5/Upper Caves | Spotted B-75 Beast 22328 | -5/Upper Caves | Build established: Sprinter 22555 | -5/Upper Caves | Learned Factory terminal intel 22602 | -5/Upper Caves | Entered another Upper Caves area 22603 | -5/Upper Caves | Identified exit to Factory 22611 | -5/Upper Caves | Discovered new exit (range 143) 22707 | -5/Upper Caves | Encountered a Warlord checkpoint 22795 | -5/Upper Caves | Learned Factory terminal intel 22821 | -5/Upper Caves | Identified exit to Zhirov 22895 | -5/Upper Caves | Entered Zhirov 22897 | -5/Zhirov | Discovered new exit (range 3) 22909 | -5/Zhirov | Learned location of Command (-1) 22916 | -5/Zhirov | Found Alien Artifact 22916 | -5/Zhirov | Identified Integrated Reactor 22916 | -5/Zhirov | Installed Integrated Reactor, increased core energy generation (+10) 22923 | -5/Zhirov | Found Alien Artifact 23054 | -5/Zhirov | Cloak Generator disabled 23064 | -5/Zhirov | Enhanced Grunts warped into view 23146 | -5/Zhirov | Build established: Scout 23154 | -5/Zhirov | Identified exit to Proximity Caves 23154 | -5/Zhirov | Entered Proximity Caves 23157 | -4/Proximity Caves | Spotter reported a threat 23506 | -4/Proximity Caves | Discovered exit to Factory (range 6) 23640 | -4/Proximity Caves | Entered Factory 23640 | -4/Factory | Evolved 2 slots: Propulsion x1, Utility x1 23641 | -4/Factory | Identified exit to Armory 23642 | -4/Factory | Loaded intel: 28 terminal locations 23683 | -4/Factory | Loaded intel: 8 recycling unit locations 23742 | -4/Factory | Garrison activated, responded to threat 23874 | -4/Factory | Spotted B-86 Titan 23982 | -4/Factory | Incoming investigation squad redirected 24024 | -4/Factory | Incoming investigation squad redirected 24096 | -4/Factory | Lost 5 parts (2n1u2w) 24123 | -4/Factory | Released all parts (8) 24130 | -4/Factory | Identified exit to Upper Caves 24130 | -4/Factory | Identified exit to Extension 24135 | -4/Factory | Core integrity fell below 50% 24150 | -4/Factory | Lost 4 parts (2n2w) 24187 | -4/Factory | Core integrity fell below 20% 24192 | -4/Factory | Destroyed by G-67 Veteran with Field Laser Last Messages --------------- 24135_ Destabilizing: System corrupted (+1). 24137_ Sneak attack on R-10 Processor. 24137_ Destroyed Hpw. Tractor Beam. 24140_ S-27 Virus destroyed. 24143_ W-44 Eye sends out distress signal. 24147_ S-27 Virus destroyed. 24148_ System corrupted: Heat flow error (+104). 24151_ K-01 Serf collects debris. 24158_ Acquired VTOL Module. 24164_ R-10 Processor collects Lgt. Nuclear Core. 24164_ VTOL Module destroyed. 24171_ K-01 Serf destroyed. 24181_ Slug penetrates Wall. 24186_ Slug penetrates S-27 Virus. 24186_ S-27 Virus suffers critical hit (Destroy). 24186_ K-01 Serf cleans the Machine. 24189_ Slug penetrates S-27 Virus. 24190_ K-01 Serf cleans the Machine. 24191_ Penetrated by Slug. 24191_ K-01 Serf destroyed. Map ----- +----------------------------------------------------+ | ?????????????????????????????????????????????????? | | ????????????????????????????????????????????????? | | ?????????????????????????????????????????????# | | ?????????????????????????????????????????????# """ | | ?????????????????????????????????????????????# """ | | ??????????????????????????????????####???????# """ | | ??????????????????????????????????# ??????? """ | | ??????????????????????????????????# ????????? | | ??????????????????????????????????# ?######### | | ??????????????????????????????????# ?# | | ??????????????????????????????????#"""" # | | ??????????????????????????????????#"""" # | | ??????????????????????????????????#"""" + | | ??????????????????????????????????#"""" # | | ??????????????????????????????????#"""" # ### | | ???????????????????????????????????"""" ?# #? | | ??????????????????? ????? ?????????"""" ?# #? | | ????????????????###+#####+#######?? ??# # | | ????????????????"" """""#?# ??# # | | ????????????????? "[["#?####???# + | | ?????????????????? g [["#????????# # | | ???????????????????"" """ [["#????????# # | | ????????????#"""???## ;#" """########## #? | | ????????????#" "# Y#" "# s #? | | ????????????+ k R / s p #?? | | ????????????+ Y > @ !/s #?? | | ????????????+ Y =%/ #?? | | ????????????#" "# #" "# k #?? | | ????????????#""????## ##" """### ########?? | | ??????????????????""" """ [["#?# #????????? | | ????????????????? [["#?# #????????? | | ????????????????? "[["#?# #????????? | | ????????????????"" """""#?# #????????? | | ???????????????##################?# #????????? | | ???????????????#" "#????# #????????? | | ???????????????#" " "" "" " "#????# #????????? | | ?????????????????"""""""?""""#????# ########## | | ??????????????????#"##"####"####### % | | ??????????????????# + ### | | ??????????????????# """""" # #?? | | ??????????????????# """""" # #?? | | ??????????????????# """""" + [! #?? | | ??????????????????# """""" !! ##########/###?? | | ??????????????????# ! #??????? ??? | | ??????????????????# #????? ? | | ??????????????????# #??? "" "" | | ??????????????????# ! #??# "" "" | | ??????????????????# #??# """ """ | | ?????????################+############ """ """ | | ?????????############### # """ """ | +----------------------------------------------------+ Best States ------------- Heat Dissipation 56 Energy Generation 25 Energy Capacity 250 Matter Stores 500 Matter Capacity 500 Sight Range 22 Robot Scan Range 18 Terrain Scan Density 10 ECM Strength 1 Jamming Range 16 Power Amplification 20 Additional Mass Support 6 Armor Coverage 225 Core Shielding 20 Propulsion Shielding 90 Phase Shifting 5 Evasion (%) 72 Core Analysis 6 Recoil Reduction 6 Offensive Hacking 32 Defensive Hacking 22 Authchip Count 1 Item Schematics ----------------- Lgt. Assault Rifle | -10/Materials | Hacked Lgt. Ion Engine | -9/Recycling | Hacked Flight Unit | -9/Recycling | Hacked Salvage Targeting Computer | -9/Recycling | Hacked Recoil Stabilizer | -6/Factory | Scanalyzed KE Penetrator | -6/Factory | Hacked Cld. VTOL Module | -6/Factory | Hacked Imp. Propulsion Shielding | -6/Factory | Hacked Lrn. Sensor Array | -6/Factory | Scanalyzed Combat Drone Bay | -6/Data Miner | Free Lgt. Regenerative Plating | -6/Data Miner | Free Cld. Gravmag System | -6/Data Miner | Free Exp. Heat Sink | -6/Data Miner | Free Hvy. Proton Cannon | -6/Data Miner | Free Imp. Antigrav System | -6/Data Miner | Free Imp. Point Defense System | -6/Data Miner | Free Dispersion Rifle | -6/Data Miner | Free Gyrokinetic Inverter | -6/Data Miner | Free Nuclear Pulse Array | -5/Factory | Hacked Mic. Fission Core | -5/Factory | Scanalyzed Impulse Thruster Array | -5/Factory | Hacked Assault Drone Bay | -5/Zhirov | Free Exp. Optical Array | -5/Zhirov | Free Imp. Arc Thrower | -5/Zhirov | Free Robot Schematics ------------------ M-13 Machinist | -10/Materials | Hacked B-60 Warrior | -6/Data Miner | Free E-15 Imp | -6/Data Miner | Free A-15 Conveyor | -6/Data Miner | Free D-63 Destroyer | -6/Data Miner | Free H-77 Assassin | -6/Data Miner | Free Fabricated ------------ Cld. VTOL Module | x1 | -6/Factory | Authchip KE Penetrator | x2 | -5/Factory | Authchip Nuclear Pulse Array | x1 | -5/Factory | Authchip Repaired ---------- Ion Engine | 61% | -10/Materials VTOL Module | 32% | -6/Factory Alien Tech Used ----------------- Integrated Reactor Achievements -------------- None Challenges ------------ None Game ------ Seed DrainedImprovedSlayer Manual? 0 Play Time 04:10:49 Cumulative 803.4 hours Start 2025.05.16 @ 16:03:07 End 2025.05.16 @ 22:19:56 Sessions 3 Manual Loads 0 Difficulty Rogue Special Mode None Game No. 461 Rogue 461 Adventurer 0 Explorer 0 Win Type - Total 22 Types 10/3/3/0/1/1/2/2/0/0 Lore% 75 Gallery% 82 Achievement% 82 Wizard Run 0 Options --------- Layout 0 ASCII 0 Keyboard 0 Movement Numpad Keybinds 0 Fullscreen 2 Font 24/Smallcaps Map View 76x50 Zoom Use 0% Tactical HUD 1 Map Filters NONE Filters NONE Steam 1 RUN: 3e0d6ac2-5984-4a02-a320-2f2b1a9308ae